Cogmind - Beta 13 *** ADVENTURER MODE // 2024.04.04 @ 19:16:11 Player: Red_Zig Result: Destroyed by G-47 Trooper with Particle Gun Performance ------------- Evolutions (0) 0 Regions Visited (4) 800 Robots Destroyed (20) 100 Value Destroyed (309) 309 Prototype IDs (1) 20 Alien Tech Used (0) 0 Bonus (300) 300 TOTAL SCORE: 1529 Bonus ------- Aligned with FarCom 300 Cogmind --------- Core Integrity 0/250 Matter 226/300 Energy 125/125 System Corruption 0% Temperature Cool (9) Movement Walking (120) Location -9/Mines Parts ------- > --- POWER (1) -------- Light Ion Engine > --- PROPULSION (2) --- Improved Aluminum Leg Improved Aluminum Leg > --- UTILITY (2) ------ Large Storage Unit Chronowheel > --- WEAPON (2) ------- Light Assault Rifle > --- INVENTORY (15) --- Aluminum Leg Medium Matter Pod (100) High-capacity Matter Pod (200) Compact Matter Pod (150) High-powered Tractor Beam Peak State ------------ > --- POWER ------------ Light Ion Engine > --- PROPULSION ------- Improved Aluminum Leg Improved Aluminum Leg > --- UTILITY ---------- Large Storage Unit Chronowheel > --- WEAPON ----------- Light Assault Rifle > --- INVENTORY -------- Aluminum Leg Medium Matter Pod High-capacity Matter Pod Compact Matter Pod High-powered Tractor Beam [Rating: 20] Favorites ----------- Power Light Ion Engine Engine Light Ion Engine Propulsion Improved Aluminum Leg Leg Improved Aluminum Leg Utility Large Storage Unit Device High-powered Tractor Beam Storage Large Storage Unit Processor Signal Interpreter Weapon Light Assault Rifle Energy Gun Small Laser Ballistic Gun Light Assault Rifle Special Weapon Mining Laser Build | -11 -10 -10 -10 -9 ------- Run | Yrd Mat Min Exi Min Slots Evolved . | . . . . . Power . | . . . . . Propulsion . | . . . . . Utility . | . . . . . Weapon . | . . . . . Parts Attached 28 | 6 16 . . 6 Power 5 | 1 3 . . 1 Engine 5 | 1 3 . . 1 Core . | . . . . . Reactor . | . . . . . Propulsion 9 | 2 5 . . 2 Treads . | . . . . . Leg 9 | 2 5 . . 2 Wheel . | . . . . . Hover . | . . . . . Flight . | . . . . . Utility 5 | 1 3 . . 1 Device 2 | . 1 . . 1 Storage 2 | 1 1 . . . Processor 1 | . 1 . . . Hackware . | . . . . . Protection . | . . . . . Artifact . | . . . . . Weapon 9 | 2 5 . . 2 Energy Gun 6 | 2 3 . . 1 Energy Cannon . | . . . . . Ballistic Gun 2 | . 2 . . . Ballistic Cannon . | . . . . . Launcher . | . . . . . Special Weapon 1 | . . . . 1 Impact Weapon . | . . . . . Slashing Weapon . | . . . . . Piercing Weapon . | . . . . . Special Melee Weapon . | . . . . . Unidentified Prototypes 1 | . . . . 1 Parts Lost 7 | . 2 . . 5 Power 2 | . 1 . . 1 Propulsion 2 | . . . . 2 Utility . | . . . . . Weapon 3 | . 1 . . 2 Highest Loss Streak 5 | . 2 . . 5 To Critical Strikes . | . . . . . Average Slot Usage (%) 95 | . 90 100 100 78 Engine 13 | . 12 14 14 7 Leg 27 | . 27 28 28 22 Device 1 | . 3 . . 1 Storage 14 | . 14 14 14 14 Processor 10 | . 5 14 14 12 Energy Gun 6 | . 16 . . . Ballistic Gun 19 | . 8 28 28 17 Naked Turns . | . . . . . Heaviest Build 28 | 11 28 26 26 25 Greatest Support 26 | 20 26 26 26 26 Greatest Overweight (x) 2 | . 2 . . . Average Overweight (x) . | . . . . . Largest Inventory Capacity 15 | 8 15 15 15 15 Average Capacity 14 | 7 14 15 15 15 Most Carried 15 | 4 8 15 15 11 Average Carried 9 | . 4 13 12 8 Final Capacity 15 | 8 15 15 15 15 Final Carried 15 | . 8 15 11 5 Class Distribution -------------------- 100% | Mutant Dominant Class ---------------- Mutant | -10/Materials Mutant | -10/Mines Mutant | -10/Exiles Mutant | -9/Mines Resources | -11 -10 -10 -10 -9 ----------- Run | Yrd Mat Min Exi Min Matter Collected 555 | 166 349 40 . . Remotely 38 | . 38 . . . Salvage Created 567 | . 467 69 . 31 Parts 44 | . 32 10 . 2 Haulers Intercepted . | . . . . . Recyclers Shooed . | . . . . . Parts Field Recycled . | . . . . . Retrieved Matter . | . . . . . Parts Self-Destructed . | . . . . . Prevented . | . . . . . Kills | -11 -10 -10 -10 -9 ------- Run | Yrd Mat Min Exi Min Combat Hostiles Destroyed 14 | . 8 5 . 1 Guns 14 | . 8 5 . 1 Classes Destroyed 6 | . 6 . . . Worker 1 | . 1 . . . Builder 1 | . 1 . . . Recycler 1 | . 1 . . . Watcher 3 | . 3 . . . Swarmer 10 | . 5 5 . . Grunt 4 | . 3 . . 1 Best Kill Streak 5 | . 5 3 . 1 Combat Bots Only 3 | . 3 3 . 1 Max Kills in Single Turn 2 | . 2 1 . 1 Gunslinging 1 | . 1 . . . Exploded . | . . . . . Melee . | . . . . . Uniques/NPCs Destroyed . | . . . . . Combat | -11 -10 -10 -10 -9 -------- Run | Yrd Mat Min Exi Min Hostile Shots Fired 122 | . 51 13 . 58 Missed 39 | . 16 2 . 21 Damage Taken 920 | . 346 54 . 520 Core 258 | . 53 8 . 197 Absorbed by Shields . | . . . . . Ignored by Resistances 277 | . 104 22 . 151 Core Remaining (%) 100 | 100 . . . . Volleys Fired 68 | . 46 10 . 12 Largest 2 | . 2 2 . 2 Hottest 120 | . 85 40 . 120 Shots Fired 108 | . 66 20 . 22 Gun 107 | . 66 20 . 21 Cannon . | . . . . . Launcher . | . . . . . Special 1 | . . . . 1 Kinetic 47 | . 6 20 . 21 Thermal 37 | . 36 . . 1 Explosive . | . . . . . Electromagnetic 24 | . 24 . . . Robot Hit Streak 25 | . 11 13 . 25 Robot Miss Streak 2 | . 2 2 . . Penetration Max . | . . . . . Secondary Targets 4 | . 3 1 . . Max Gunslinging Chain 1 | . 1 1 . . Shots Hit Robots 88 | . 52 14 . 22 Core Hits 35 | . 23 7 . 5 Critical Kills . | . . . . . Critical Parts Destroyed 1 | . 1 . . . Critical Strikes 1 | . 1 . . . Destroy 1 | . 1 . . . Melee Attacks . | . . . . . Impact . | . . . . . Slashing . | . . . . . Piercing . | . . . . . Sneak Attacks . | . . . . . Combat Hostiles . | . . . . . Follow-up Attacks . | . . . . . Damage Inflicted 1164 | . 770 166 . 228 Guns 1041 | . 671 166 . 204 Cannons . | . . . . . Explosions 83 | . 83 . . . Melee . | . . . . . Ramming 16 | . 16 . . . Kinetic 409 | . 39 166 . 204 Thermal 426 | . 402 . . 24 Explosive . | . . . . . Electromagnetic 313 | . 313 . . . Impact . | . . . . . Slashing . | . . . . . Piercing . | . . . . . Highest Corruption . | . . . . . Average Corruption . | . . . . . Corruption Purged . | . . . . . Corruption Blocked . | . . . . . Overload Shots . | . . . . . Overflow Damage . | . . . . . Projectiles . | . . . . . Explosions . | . . . . . Melee . | . . . . . Knockbacks 1 | . 1 . . . Impact 1 | . 1 . . . Kinetic . | . . . . . Secondary . | . . . . . Self-Inflicted Damage 30 | . 30 . . . Shots 1 | . 1 . . . Rammed . | . . . . . Targets Rammed 3 | . 3 . . . Kicked 3 | . 3 . . . Crushed . | . . . . . Highest Temperature 149 | . 149 . . 26 Average Temperature 50 | . 58 . . 8 Received Heat Transfer 354 | . 186 . . 168 Siege Activations . | . . . . . Robots Corrupted . | . . . . . Combat Hostiles . | . . . . . Parts Fried 3 | . 3 . . . Impact Corruptions . | . . . . . Robots Melted . | . . . . . Combat Hostiles . | . . . . . Parts Melted . | . . . . . Heat Transferred 925 | . 875 . . 50 Parts Sabotaged . | . . . . . Parts Stolen . | . . . . . Parts Stripped . | . . . . . Power Chain Reactions 2 | . 2 . . . Alert | -11 -10 -10 -10 -9 ------- Run | Yrd Mat Min Exi Min Peak Influence 150 | . 133 150 . 20 Initial . | . . . . . Average 49 | . 59 44 . 3 Maximum Alert Level . | . . . . . Low Security (%) 100 | 100 100 100 . 100 Level 1 . | . . . . . Level 2 . | . . . . . Level 3 . | . . . . . Level 4 . | . . . . . Level 5 . | . . . . . High Security . | . . . . . Max Security . | . . . . . Squads Dispatched . | . . . . . Investigation . | . . . . . Extermination . | . . . . . Reinforcement . | . . . . . Assault . | . . . . . Garrison . | . . . . . Intercept . | . . . . . Searches Triggered . | . . . . . Construction Impeded . | . . . . . Haulers Reinforced . | . . . . . Active Scanning Responses . | . . . . . Cargo Convoy Interrupts . | . . . . . Stealth | -11 -10 -10 -10 -9 --------- Run | Yrd Mat Min Exi Min Distress Signals 1 | . 1 . . . Communications Jammed . | . . . . . Distress Signals . | . . . . . Times Spotted 29 | . 17 7 . 5 Peak Tracking Total 4 | . 4 3 . 4 Tactical Retreats 1 | . . 1 . . Traps | -11 -10 -10 -10 -9 ------- Run | Yrd Mat Min Exi Min Traps Triggered 3 | . 3 . . . Indirectly . | . . . . . Trap Hack Attempts . | . . . . . Triggered . | . . . . . Disarmed . | . . . . . Reprogrammed . | . . . . . Reused . | . . . . . Traps Extracted . | . . . . . Installed . | . . . . . Triggered . | . . . . . Most Traps Carried 5 | . . 5 5 . Machines | -11 -10 -10 -10 -9 ---------- Run | Yrd Mat Min Exi Min Machines Disabled . | . . . . . Max in Single Turn . | . . . . . Machines Repaired . | . . . . . Machines Dismantled . | . . . . . Machines Sabotaged . | . . . . . Overloaded Fab Kills . | . . . . . Hacking | -11 -10 -10 -10 -9 --------- Run | Yrd Mat Min Exi Min Machines Accessed . | . . . . . Terminals . | . . . . . Fabricators . | . . . . . Repair Stations . | . . . . . Recycling Units . | . . . . . Scanalyzers . | . . . . . Garrison Access . | . . . . . Total Hacks . | . . . . . Successful . | . . . . . Failed . | . . . . . Catastrophic . | . . . . . Database Lockouts . | . . . . . Manual 1 | . . . 1 . Terminals . | . . . . . Fabricators . | . . . . . Repair Stations . | . . . . . Recycling Units . | . . . . . Scanalyzers . | . . . . . Garrison Access . | . . . . . Terminal Hacks . | . . . . . Fabricator Hacks . | . . . . . Repair Station Hacks . | . . . . . Recycling Unit Hacks . | . . . . . Scanalyzer . | . . . . . Garrison Access Hacks . | . . . . . Unauthorized Hacks . | . . . . . Terminals . | . . . . . Fabricators . | . . . . . Repair Stations . | . . . . . Recycling Units . | . . . . . Scanalyzers . | . . . . . Garrison Access . | . . . . . Data Cores Recovered . | . . . . . Used . | . . . . . Hacking Detections . | . . . . . Full Trace Events . | . . . . . Feedback Events . | . . . . . Feedback Blocked . | . . . . . Robot Schematics Acquired . | . . . . . Robots Built . | . . . . . Authchips . | . . . . . Time . | . . . . . Total Robot Build Rating . | . . . . . Part Schematics Acquired . | . . . . . Parts Built . | . . . . . Authchips . | . . . . . Time . | . . . . . Total Part Build Rating . | . . . . . Parts Repaired . | . . . . . Time . | . . . . . Parts Recycled . | . . . . . Recycled Matter . | . . . . . Retrieved Matter . | . . . . . Retrieved Components . | . . . . . Parts Scanalyzed . | . . . . . Part Schematics Acquired . | . . . . . Parts Damaged . | . . . . . Bothacking | -11 -10 -10 -10 -9 ------------ Run | Yrd Mat Min Exi Min Used RIF Installer . | . . . . . Robots Hacked . | . . . . . Non-combat . | . . . . . Combat . | . . . . . Robot Hacks Applied . | . . . . . Relay Couplers Released . | . . . . . Fabnet Peak Effective % . | . . . . . Robots Rewired . | . . . . . Allies Hacked . | . . . . . Hacks Repelled . | . . . . . Allies | -11 -10 -10 -10 -9 -------- Run | Yrd Mat Min Exi Min Total Allies . | . . . . . Largest Group . | . . . . . Highest-Rated Group . | . . . . . Highest-Rated Ally . | . . . . . Total Orders . | . . . . . Ally Attacks . | . . . . . Total Damage . | . . . . . Kills . | . . . . . Allies Corrupted . | . . . . . Allies Melted . | . . . . . Intel | -11 -10 -10 -10 -9 ------- Run | Yrd Mat Min Exi Min Robot Analysis Total . | . . . . . Derelict Logs Recovered 1 | . . 1 . . Drone Launches . | . . . . . Drone Recoveries . | . . . . . Exploration | -11 -10 -10 -10 -9 ------------- Run | Yrd Mat Min Exi Min Turns Passed 2516 | 54 1013 567 797 85 Spaces Moved 1729 | 44 561 426 661 37 Core 14 | 14 . . . . Treads . | . . . . . Legs 1715 | 30 561 426 661 37 Wheels . | . . . . . Hover . | . . . . . Flight . | . . . . . Fastest Speed 50 | 50 120 120 120 120 Average Speed 127 | 97 146 120 120 120 Slowest Speed 260 | 120 260 120 120 120 Overloaded Moves . | . . . . . Propulsion Burnouts . | . . . . . Robots Hopped . | . . . . . Cave-ins Triggered . | . . . . . Exploration Rate (%) 59 | 3 91 96 92 13 Regions Visited 4 Branch Regions 3 Pre-discovered Areas . | . . . . . Known Exits Taken 3 | . 1 1 1 . Unknown Exits Taken 1 | 1 . . . . Scrap Searched 1 | . . 1 . . Spaces Dug . | . . . . . Terrain Destroyed 6 | . 6 . . . Melee . | . . . . . Projectile . | . . . . . AOE 6 | . 6 . . . Terrain Rammed . | . . . . . Walls Destroyed . | . . . . . Machines Disabled . | . . . . . Actions | -11 -10 -10 -10 -9 --------- Run | Yrd Mat Min Exi Min Total 1932 | 55 690 464 668 55 Wait 57 | . 35 22 . . Move 1725 | 43 560 425 660 37 Hop . | . . . . . Pick Up 38 | 6 23 7 2 . Fast Attach . | . . . . . Attach 22 | 6 11 . . 5 Detach 1 | . 1 . . . Swap 6 | . 5 . . 1 Drop 12 | . 6 . 6 . Fire 68 | . 46 10 . 12 Melee . | . . . . . Ram . | . . . . . Kick 3 | . 3 . . . Crush . | . . . . . Escape Stasis . | . . . . . Rewire . | . . . . . Trap . | . . . . . Miscellaneous . | . . . . . Route ------- -11/Scrapyard -10/Materials (discovered 5 exits: *Mat x3 / *Min x2) -10/Mines (discovered 3 exits: *Mat x2 / *Exi) -10/Exiles -9/Mines History --------- Turn | Location | Event 8 | -11/Scrapyard | Discovered new exit (range 16) 55 | -11/Scrapyard | Entered Materials 218 | -10/Materials | Discovered new exit (range 14) 300 | -10/Materials | Build established: Mutant 515 | -10/Materials | Discovered new exit (range 15) 705 | -10/Materials | Discovered new exit (range 15) 723 | -10/Materials | Identified exit to Materials 869 | -10/Materials | Discovered new exit (range 16) 886 | -10/Materials | Identified exit to Mines 978 | -10/Materials | Discovered exit to Materials (range 8) 1068 | -10/Materials | Entered Mines 1096 | -10/Mines | Learned 2 Materials zone layouts 1112 | -10/Mines | Found a hidden stash of uninstalled traps 1172 | -10/Mines | Discovered exit to Materials (range 3) 1376 | -10/Mines | Discovered exit to Materials (range 8) 1629 | -10/Mines | Deemed a non-threat by the Exiles lab entrance 1631 | -10/Mines | Discovered new exit (range 5) 1634 | -10/Mines | Identified exit to Exiles 1635 | -10/Mines | Entered Exiles 1665 | -10/Exiles | Met 8R-AWN 1683 | -10/Exiles | Met EX-HEX 1760 | -10/Exiles | Visited The Gauntlet 1799 | -10/Exiles | Met EX-DEC 1838 | -10/Exiles | Met EX-BIN 1974 | -10/Exiles | Aligned with FarCom system 1975 | -10/Exiles | Given EX-Vault access code 2005 | -10/Exiles | Opened EX-Vault 2013 | -10/Exiles | Found Prototype Device 2054 | -10/Exiles | Warned to stay clear of 0b10 Research branches 2147 | -10/Exiles | Discovered new exit (range 11) 2160 | -10/Exiles | Identified exit to Mines 2432 | -10/Exiles | Left Exiles lab with Chronowheel 2432 | -10/Exiles | Entered Mines 2448 | -9/Mines | Core integrity fell below 50% 2465 | -9/Mines | Core integrity fell below 20% 2497 | -9/Mines | Lost 5 parts (1p2n2w) 2505 | -9/Mines | Identified Chronowheel 2505 | -9/Mines | Activated Chronowheel 2517 | -9/Mines | Destroyed by G-47 Trooper with Particle Gun Last Messages --------------- GOAL=ESCAPE Receiving FarCom transmissions... C-30 ARC bursts open, deploying its payload. L-31 Rogue unfolds itself. G-34 Mercenary unfolds itself. G-34 Mercenary destroyed. Imp. Aluminum Leg destroyed. Assault Rifle destroyed. Imp. Aluminum Leg destroyed. Lgt. Ion Engine destroyed. Mining Laser severed. EM Shotgun destroyed. Destroyed Imp. Ion Engine. K-01 Serf collects debris. Discarded Signal Interpreter. Identified Chronowheel. Spacetime feels off. K-01 Serf collects debris. L-31 Rogue destroyed. K-01 Serf collects debris. Map ----- +----------------------------------------------------+ | ?????????????????????????????????????????????????? | | ?????????????????????????????????????????????????? | | ?????????????????????????????????????????????????? | | ?????????????????????????????????????????????????? | | ?????????????????????????????????????????????????? | | ?????????????????????????????????????????????????? | | ?????????????????????????????????????????????????? | | ?????????????????????????????????????????????????? | | ?????????????????????????????????????????????????? | | ?????????????????????????????????????????????????? | | ?????????????????????????????????????????????????? | | ?????????????????????????????????????????????????? | | ?????????????????????????????????????????????????? | | ?????????????????????????????????????????????????? | | ?????????????????????????????????????????????????? | | ?????????????????????????????????????????????????? | | ?????????????????????????????????????????????????? | | ?????????????????????????????????????????????????? | | ?????????????????????????????????????????????????? | | ?????????????????????????????????????????????????? | | ????????????????????????###??????????????????????? | | ????????????????????????# ??????????????????????? | | ????????????????????????# #??????????????????????? | | ????????????????????????#$#???????????????g??????? | | ????????????????????????# ##?????????????????????? | | ???????????????????######@ ##????????????????????? | | ??????????????????## #????????????????????? | | ?????????????###### g ##???????????????????? | | ????????????## g #???????????????????? | | ######?????## t ### #???????????????????? | | # #?????# !% ##?## #???????????????????? | | ##???# ####???## ##???????????????????? | | #???# g##????????###????????????????????? | | ##??## ##???????????????????????????????? | | # ## ###### ###?????????????????????????????? | | ?????# #### ##????????????????????????????? | | ????## #????????????????????????????? | | ##### #????????????????????????????? | | ##########????????????????????????????? | | ###### ##?????????????????????????????????????? | | ?????######??????????????????????????????????????? | | ?????????????????????????????????????????????????? | | ?????????????????????????????????????????????????? | | | | | | | | | | | | | | | +----------------------------------------------------+ Best States ------------- Heat Dissipation 25 Energy Generation 10 Energy Capacity 125 Matter Stores 300 Matter Capacity 300 Sight Range 16 Terrain Scan Density 10 Resistance: KI 20 Resistance: TH 20 Resistance: EX 20 Resistance: EM 20 Resistance: I 20 Resistance: S 20 Resistance: P 20 Evasion (%) 55 Offensive Hacking 10 Item Schematics ----------------- None Robot Schematics ------------------ None Fabricated ------------ Nothing Alien Tech Used ----------------- None Achievements -------------- None Challenges ------------ None Game ------ Seed BiomechanicalDeepProtomatter Manual? 0 Play Time 00:25:35 Cumulative 9.5 hours Start 2024.04.04 @ 18:48:25 End 2024.04.04 @ 19:16:11 Sessions 1 Manual Loads 0 Difficulty Adventurer Special Mode None Game No. 8 Rogue 0 Adventurer 8 Explorer 0 Win Type - Total 0 Types 0/0/0/0/0/0/0/0/0 Lore% 11 Gallery% 16 Achievement% 16 Wizard Run 0 Options --------- Layout 1 ASCII 0 Keyboard 0 Movement Mouse Keybinds 0 Fullscreen 1 Font 24/Crisp Map View 50x35 Zoom Use 21% Tactical HUD 0 Map Filters NONE Filters NONE Steam 1 RUN: 175c0a95-7590-4abb-90d4-da1595194390